[Event "Titled Tuesday Blitz April 25 Early 2023"]
[White "Devaev, Alexander"]
[Black "Bacrot, Etienne"]
[WhiteFideId "4169395"]
[BlackFideId "605506"]
[WhiteElo "2204"]
[BlackElo "2663"]
[Result "0-1"]
[Round "05"]
[TimeControl "180+2"]
[Date "2023.04.25"]
[WhiteClock "0:00:39"]
[BlackClock "0:00:23"]

1. Nf3 {[%clk 0:02:41]}  d6 {[%clk 0:02:59]} 2. d4 {[%clk 0:02:40]}  Nf6 {[%clk 0:02:59]} 3. c4 {[%clk 0:02:40]}  g6 {[%clk 0:02:59]} 4. Nc3 {[%clk 0:02:41]}  Bg7 {[%clk 0:03:00]} 5. e4 {[%clk 0:02:42]}  O-O {[%clk 0:03:00]} 6. h3 {[%clk 0:02:42]}  e5 {[%clk 0:02:59]} 7. d5 {[%clk 0:02:43]}  a5 {[%clk 0:02:59]} 8. Bg5 {[%clk 0:02:43]}  h6 {[%clk 0:02:59]} 9. Be3 {[%clk 0:02:44]}  Nh5 {[%clk 0:02:57]} 10. Nh2 {[%clk 0:02:43]}  Na6 {[%clk 0:02:48]} 11. g3 {[%clk 0:02:43]}  Qe8 {[%clk 0:02:38]} 12. Be2 {[%clk 0:02:42]}  Nf6 {[%clk 0:02:37]} 13. Ng4 {[%clk 0:02:43]}  h5 {[%clk 0:02:22]} 14. Nxf6+ {[%clk 0:02:43]}  Bxf6 {[%clk 0:02:22]} 15. g4 {[%clk 0:02:43]}  h4 {[%clk 0:02:21]} 16. g5 {[%clk 0:02:31]}  Bg7 {[%clk 0:02:18]} 17. Bg4 {[%clk 0:02:32]}  Bd7 {[%clk 0:02:05]} 18. Bxd7 {[%clk 0:02:23]}  Qxd7 {[%clk 0:02:05]} 19. Qg4 {[%clk 0:02:24]}  Qxg4 {[%clk 0:02:05]} 20. hxg4 {[%clk 0:02:24]}  Rfc8 {[%clk 0:01:40]} 21. Rxh4 {[%clk 0:02:22]}  Kf8 {[%clk 0:01:41]} 22. Kd2 {[%clk 0:02:18]}  Ke7 {[%clk 0:01:41]} 23. Rh7 {[%clk 0:02:16]}  Rg8 {[%clk 0:01:41]} 24. f3 {[%clk 0:02:11]}  Kd7 {[%clk 0:01:40]} 25. b3 {[%clk 0:02:06]}  Ke7 {[%clk 0:01:38]} 26. a3 {[%clk 0:02:05]}  Nb8 {[%clk 0:01:38]} 27. Rb1 {[%clk 0:02:05]}  Nd7 {[%clk 0:01:37]} 28. Ne2 {[%clk 0:01:51]}  Nf8 {[%clk 0:01:31]} 29. Rh3 {[%clk 0:01:50]}  Nd7 {[%clk 0:01:31]} 30. Rbh1 {[%clk 0:01:50]}  Rab8 {[%clk 0:01:26]} 31. Nc3 {[%clk 0:01:48]}  Ra8 {[%clk 0:01:27]} 32. Ra1 {[%clk 0:01:43]}  Kd8 {[%clk 0:01:22]} 33. Rhh1 {[%clk 0:01:40]}  Ke7 {[%clk 0:01:22]} 34. Kd3 {[%clk 0:01:39]}  Kd8 {[%clk 0:01:18]} 35. b4 {[%clk 0:01:36]}  b6 {[%clk 0:01:16]} 36. c5 {[%clk 0:01:08]}  dxc5 {[%clk 0:01:03]} 37. bxc5 {[%clk 0:01:07]}  Nxc5+ {[%clk 0:01:03]} 38. Bxc5 {[%clk 0:01:05]}  bxc5 {[%clk 0:01:04]} 39. Kc4 {[%clk 0:01:05]}  Bf8 {[%clk 0:01:04]} 40. Rh7 {[%clk 0:01:01]}  Ke8 {[%clk 0:01:00]} 41. Rb1 {[%clk 0:01:02]}  Be7 {[%clk 0:00:58]} 42. Rb7 {[%clk 0:01:01]}  Rc8 {[%clk 0:00:51]} 43. Ra7 {[%clk 0:00:43]}  Bxg5 {[%clk 0:00:51]} 44. Nb5 {[%clk 0:00:41]}  Rf8 {[%clk 0:00:26]} 45. Kxc5 {[%clk 0:00:37]}  Be3+ {[%clk 0:00:26]} 46. Kc6 {[%clk 0:00:37]}  Bxa7 {[%clk 0:00:25]} 47. Nxc7+ {[%clk 0:00:38]}  Kd8 {[%clk 0:00:25]} 48. d6 {[%clk 0:00:39]}  Bb8 {[%clk 0:00:23]} 0-1


[Site "https://www.chess.com"]

[Event "Titled Tuesday Blitz April 25 Early 2023"]
[White "Begunov, Konstantin"]
[Black "Rustemov, Alexander"]
[WhiteFideId "4118510"]
[BlackFideId "4119002"]
[WhiteElo "2087"]
[BlackElo "2778"]
[Result "1-0"]
[Round "05"]
[TimeControl "180+2"]
[Date "2023.04.25"]
[WhiteClock "0:00:06"]
[BlackClock "0:00:07"]

1. d4 {[%clk 0:02:56]}  d5 {[%clk 0:02:59]} 2. c4 {[%clk 0:02:56]}  c6 {[%clk 0:02:58]} 3. Nc3 {[%clk 0:02:57]}  Nf6 {[%clk 0:02:58]} 4. cxd5 {[%clk 0:02:57]}  cxd5 {[%clk 0:02:57]} 5. Bf4 {[%clk 0:02:57]}  Nc6 {[%clk 0:02:57]} 6. e3 {[%clk 0:02:58]}  a6 {[%clk 0:02:54]} 7. Nf3 {[%clk 0:02:57]}  Bg4 {[%clk 0:02:53]} 8. h3 {[%clk 0:02:58]}  Bxf3 {[%clk 0:02:53]} 9. Qxf3 {[%clk 0:02:59]}  e6 {[%clk 0:02:52]} 10. Bd3 {[%clk 0:02:59]}  Bd6 {[%clk 0:02:49]} 11. Bg5 {[%clk 0:03:00]}  Be7 {[%clk 0:02:45]} 12. O-O {[%clk 0:02:58]}  O-O {[%clk 0:02:45]} 13. Rfc1 {[%clk 0:02:58]}  Rc8 {[%clk 0:02:45]} 14. Qd1 {[%clk 0:02:30]}  Ne8 {[%clk 0:02:44]} 15. Bxe7 {[%clk 0:02:29]}  Qxe7 {[%clk 0:02:43]} 16. Na4 {[%clk 0:02:28]}  Nd6 {[%clk 0:02:42]} 17. Nc5 {[%clk 0:02:22]}  Rc7 {[%clk 0:02:30]} 18. Rc3 {[%clk 0:02:13]}  Rfc8 {[%clk 0:02:29]} 19. Rac1 {[%clk 0:02:13]}  g6 {[%clk 0:02:28]} 20. Nxa6 {[%clk 0:01:47]}  bxa6 {[%clk 0:02:25]} 21. Bxa6 {[%clk 0:01:48]}  Na7 {[%clk 0:02:22]} 22. Bxc8 {[%clk 0:01:45]}  Rxc8 {[%clk 0:02:22]} 23. Qa4 {[%clk 0:01:33]}  Rxc3 {[%clk 0:02:19]} 24. Rxc3 {[%clk 0:01:33]}  Qb7 {[%clk 0:02:06]} 25. b3 {[%clk 0:01:24]}  Kg7 {[%clk 0:02:04]} 26. Qa5 {[%clk 0:01:20]}  Nac8 {[%clk 0:01:40]} 27. Rc7 {[%clk 0:01:16]}  Qb8 {[%clk 0:01:38]} 28. Rd7 {[%clk 0:01:01]}  Nb6 {[%clk 0:01:29]} 29. Ra7 {[%clk 0:00:46]}  Ndc8 {[%clk 0:01:20]} 30. Ra6 {[%clk 0:00:43]}  h5 {[%clk 0:01:00]} 31. Qb5 {[%clk 0:00:39]}  Qc7 {[%clk 0:00:57]} 32. a4 {[%clk 0:00:30]}  Nd7 {[%clk 0:00:55]} 33. Rc6 {[%clk 0:00:23]}  Qd8 {[%clk 0:00:50]} 34. Qb7 {[%clk 0:00:22]}  Ncb6 {[%clk 0:00:38]} 35. a5 {[%clk 0:00:20]}  Na8 {[%clk 0:00:35]} 36. Rd6 {[%clk 0:00:19]}  Nc7 {[%clk 0:00:30]} 37. a6 {[%clk 0:00:17]}  Kf8 {[%clk 0:00:27]} 38. a7 {[%clk 0:00:17]}  Ke7 {[%clk 0:00:28]} 39. Rc6 {[%clk 0:00:15]}  Na8 {[%clk 0:00:26]} 40. Rc8 {[%clk 0:00:15]}  Qa5 {[%clk 0:00:26]} 41. Qxa8 {[%clk 0:00:13]}  Qe1+ {[%clk 0:00:26]} 42. Kh2 {[%clk 0:00:13]}  Qxf2 {[%clk 0:00:26]} 43. Re8+ {[%clk 0:00:13]}  Kf6 {[%clk 0:00:26]} 44. Qd8+ {[%clk 0:00:12]}  Kf5 {[%clk 0:00:23]} 45. Qxd7 {[%clk 0:00:12]}  Ke4 {[%clk 0:00:13]} 46. a8=Q {[%clk 0:00:10]}  h4 {[%clk 0:00:12]} 47. Qb8 {[%clk 0:00:10]}  Kxe3 {[%clk 0:00:09]} 48. Qe5+ {[%clk 0:00:10]}  Kd3 {[%clk 0:00:10]} 49. Ra8 {[%clk 0:00:08]}  g5 {[%clk 0:00:09]} 50. Qb5+ {[%clk 0:00:06]}  Kc3 {[%clk 0:00:09]} 51. Rc8+ {[%clk 0:00:06]}  Kb2 {[%clk 0:00:09]} 52. Qc5 {[%clk 0:00:06]}  f6 {[%clk 0:00:07]} 53. Qc1+ {[%clk 0:00:06]}  Kxb3 {[%clk 0:00:07]} 54. Qee3+ {[%clk 0:00:06]} 1-0


[Site "https://www.chess.com"]

[Event "Titled Tuesday Blitz April 25 Early 2023"]
[White "Karas, Marek"]
[Black "Csonka, Balazs"]
[WhiteFideId "14928558"]
[BlackFideId "742910"]
[WhiteElo "2233"]
[BlackElo "2404"]
[Result "1/2-1/2"]
[Round "05"]
[TimeControl "180+2"]
[Date "2023.04.25"]
[WhiteClock "0:00:08"]
[BlackClock "0:00:04"]

1. d4 {[%clk 0:03:00]}  d5 {[%clk 0:02:58]} 2. c4 {[%clk 0:03:00]}  e6 {[%clk 0:02:58]} 3. Nf3 {[%clk 0:02:56]}  Nf6 {[%clk 0:02:58]} 4. Nc3 {[%clk 0:02:54]}  Bb4 {[%clk 0:02:54]} 5. Qa4+ {[%clk 0:02:52]}  Nc6 {[%clk 0:02:53]} 6. e3 {[%clk 0:02:49]}  O-O {[%clk 0:02:50]} 7. Bd2 {[%clk 0:02:42]}  a6 {[%clk 0:02:40]} 8. Qc2 {[%clk 0:02:40]}  h6 {[%clk 0:02:35]} 9. a3 {[%clk 0:02:36]}  Bxc3 {[%clk 0:02:13]} 10. Bxc3 {[%clk 0:02:37]}  Ne4 {[%clk 0:02:11]} 11. Bd3 {[%clk 0:02:33]}  f5 {[%clk 0:02:11]} 12. O-O {[%clk 0:02:16]}  b6 {[%clk 0:01:54]} 13. cxd5 {[%clk 0:02:07]}  exd5 {[%clk 0:01:53]} 14. Bb4 {[%clk 0:02:03]}  Rf6 {[%clk 0:01:29]} 15. Ne5 {[%clk 0:01:47]}  Nxe5 {[%clk 0:01:25]} 16. dxe5 {[%clk 0:01:47]}  Rf7 {[%clk 0:01:25]} 17. f4 {[%clk 0:01:42]}  c5 {[%clk 0:01:23]} 18. Be1 {[%clk 0:01:37]}  Be6 {[%clk 0:01:21]} 19. Rd1 {[%clk 0:01:31]}  Qc7 {[%clk 0:01:17]} 20. b4 {[%clk 0:01:23]}  Qc6 {[%clk 0:00:45]} 21. bxc5 {[%clk 0:01:21]}  bxc5 {[%clk 0:00:46]} 22. Rb1 {[%clk 0:01:10]}  c4 {[%clk 0:00:35]} 23. Bxe4 {[%clk 0:01:06]}  dxe4 {[%clk 0:00:22]} 24. Bc3 {[%clk 0:01:01]}  Raa7 {[%clk 0:00:15]} 25. Bd4 {[%clk 0:01:00]}  Rab7 {[%clk 0:00:15]} 26. Rxb7 {[%clk 0:00:47]}  Rxb7 {[%clk 0:00:16]} 27. Rb1 {[%clk 0:00:47]}  Kh7 {[%clk 0:00:12]} 28. h3 {[%clk 0:00:46]}  Qd7 {[%clk 0:00:10]} 29. Rxb7 {[%clk 0:00:39]}  Qxb7 {[%clk 0:00:11]} 30. Qb2 {[%clk 0:00:38]}  Qxb2 {[%clk 0:00:06]} 31. Bxb2 {[%clk 0:00:37]}  Kg6 {[%clk 0:00:06]} 32. Bc3 {[%clk 0:00:33]}  Kf7 {[%clk 0:00:06]} 33. Kf2 {[%clk 0:00:27]}  g5 {[%clk 0:00:06]} 34. g3 {[%clk 0:00:20]}  Kg6 {[%clk 0:00:06]} 35. Bd4 {[%clk 0:00:17]}  Kh5 {[%clk 0:00:06]} 36. Bc3 {[%clk 0:00:15]}  Bd5 {[%clk 0:00:06]} 37. Bd4 {[%clk 0:00:11]}  Kg6 {[%clk 0:00:07]} 38. Bc3 {[%clk 0:00:11]}  h5 {[%clk 0:00:07]} 39. h4 {[%clk 0:00:10]}  gxh4 {[%clk 0:00:06]} 40. gxh4 {[%clk 0:00:07]}  Kf7 {[%clk 0:00:07]} 41. Ke1 {[%clk 0:00:07]}  Ke8 {[%clk 0:00:07]} 42. Kd2 {[%clk 0:00:07]}  Kd7 {[%clk 0:00:08]} 43. Bb4 {[%clk 0:00:07]}  Kc6 {[%clk 0:00:08]} 44. Kc3 {[%clk 0:00:07]}  Kb5 {[%clk 0:00:07]} 45. Kd4 {[%clk 0:00:08]}  Be6 {[%clk 0:00:08]} 46. Bd6 {[%clk 0:00:07]}  Ka4 {[%clk 0:00:05]} 47. Kc3 {[%clk 0:00:07]}  Bf7 {[%clk 0:00:04]} 48. Kd4 {[%clk 0:00:07]}  Be6 {[%clk 0:00:05]} 49. Kc3 {[%clk 0:00:06]}  Bg8 {[%clk 0:00:05]} 50. Be7 {[%clk 0:00:06]}  Bf7 {[%clk 0:00:04]} 51. Bd6 {[%clk 0:00:07]}  a5 {[%clk 0:00:04]} 52. Be7 {[%clk 0:00:07]}  Kb5 {[%clk 0:00:04]} 53. Bd6 {[%clk 0:00:08]}  Ka4 {[%clk 0:00:03]} 54. Be7 {[%clk 0:00:07]}  Bg8 {[%clk 0:00:04]} 55. Bd6 {[%clk 0:00:08]}  Bf7 {[%clk 0:00:04]} 1/2-1/2


[Site "https://www.chess.com"]

[Event "Titled Tuesday Blitz April 25 Early 2023"]
[White "Petukhov, Dmitry"]
[Black "Ashraf, Artin"]
[WhiteFideId "4142748"]
[BlackFideId "22514805"]
[WhiteElo "2311"]
[BlackElo "2188"]
[Result "0-1"]
[Round "05"]
[TimeControl "180+2"]
[Date "2023.04.25"]
[WhiteClock "0:00:01"]
[BlackClock "0:00:02"]

1. e4 {[%clk 0:03:00]}  e5 {[%clk 0:02:58]} 2. Nf3 {[%clk 0:03:00]}  Nc6 {[%clk 0:02:57]} 3. Bb5 {[%clk 0:03:00]}  Nf6 {[%clk 0:02:54]} 4. O-O {[%clk 0:02:57]}  Nxe4 {[%clk 0:02:41]} 5. d4 {[%clk 0:02:57]}  Nd6 {[%clk 0:02:36]} 6. Bxc6 {[%clk 0:02:58]}  dxc6 {[%clk 0:02:37]} 7. dxe5 {[%clk 0:02:58]}  Nf5 {[%clk 0:02:37]} 8. Qxd8+ {[%clk 0:02:58]}  Kxd8 {[%clk 0:02:38]} 9. Nc3 {[%clk 0:02:57]}  Be7 {[%clk 0:02:26]} 10. Ne2 {[%clk 0:02:56]}  c5 {[%clk 0:02:22]} 11. Nf4 {[%clk 0:02:53]}  c6 {[%clk 0:02:18]} 12. h3 {[%clk 0:02:50]}  h5 {[%clk 0:02:15]} 13. Ne2 {[%clk 0:02:02]}  Be6 {[%clk 0:02:05]} 14. b3 {[%clk 0:02:02]}  a5 {[%clk 0:02:02]} 15. Nf4 {[%clk 0:01:51]}  a4 {[%clk 0:01:58]} 16. Nxe6+ {[%clk 0:01:46]}  fxe6 {[%clk 0:01:59]} 17. Bg5 {[%clk 0:01:31]}  Bxg5 {[%clk 0:01:56]} 18. Nxg5 {[%clk 0:01:31]}  Ke7 {[%clk 0:01:57]} 19. c3 {[%clk 0:01:18]}  Rhd8 {[%clk 0:01:52]} 20. Ne4 {[%clk 0:01:05]}  Rd5 {[%clk 0:01:39]} 21. f4 {[%clk 0:01:01]}  b6 {[%clk 0:00:47]} 22. Kf2 {[%clk 0:01:01]}  Rd3 {[%clk 0:00:31]} 23. Rfd1 {[%clk 0:00:55]}  Rxd1 {[%clk 0:00:27]} 24. Rxd1 {[%clk 0:00:56]}  axb3 {[%clk 0:00:27]} 25. axb3 {[%clk 0:00:56]}  Ra3 {[%clk 0:00:27]} 26. g4 {[%clk 0:00:43]}  hxg4 {[%clk 0:00:25]} 27. hxg4 {[%clk 0:00:43]}  Nh6 {[%clk 0:00:25]} 28. Kf3 {[%clk 0:00:34]}  Nf7 {[%clk 0:00:14]} 29. g5 {[%clk 0:00:29]}  Rxb3 {[%clk 0:00:10]} 30. Ra1 {[%clk 0:00:27]}  Nh8 {[%clk 0:00:07]} 31. Ra7+ {[%clk 0:00:27]}  Kf8 {[%clk 0:00:05]} 32. Ra8+ {[%clk 0:00:28]}  Kf7 {[%clk 0:00:06]} 33. Rxh8 {[%clk 0:00:28]}  b5 {[%clk 0:00:07]} 34. Rc8 {[%clk 0:00:25]}  b4 {[%clk 0:00:04]} 35. Rxc6 {[%clk 0:00:26]}  bxc3 {[%clk 0:00:05]} 36. Rxc5 {[%clk 0:00:25]}  c2+ {[%clk 0:00:05]} 37. Kg4 {[%clk 0:00:26]}  Rb4 {[%clk 0:00:04]} 38. Nd6+ {[%clk 0:00:26]}  Kg6 {[%clk 0:00:04]} 39. Rxc2 {[%clk 0:00:26]}  Rb6 {[%clk 0:00:02]} 40. Rc8 {[%clk 0:00:26]}  Rb1 {[%clk 0:00:02]} 41. Ne4 {[%clk 0:00:25]}  Rg1+ {[%clk 0:00:02]} 42. Ng3 {[%clk 0:00:25]}  Kf7 {[%clk 0:00:01]} 43. Rc7+ {[%clk 0:00:25]}  Kg6 {[%clk 0:00:01]} 44. Rc6 {[%clk 0:00:22]}  Kf7 {[%clk 0:00:02]} 45. g6+ {[%clk 0:00:22]}  Ke7 {[%clk 0:00:02]} 46. Rc7+ {[%clk 0:00:21]}  Kf8 {[%clk 0:00:02]} 47. Rf7+ {[%clk 0:00:21]}  Kg8 {[%clk 0:00:03]} 48. Re7 {[%clk 0:00:20]}  Kf8 {[%clk 0:00:03]} 49. Rxe6 {[%clk 0:00:20]}  Ra1 {[%clk 0:00:03]} 50. Rb6 {[%clk 0:00:20]}  Rb1 {[%clk 0:00:04]} 51. Nf5 {[%clk 0:00:18]}  Rxb6 {[%clk 0:00:03]} 52. Nd6 {[%clk 0:00:15]}  Ke7 {[%clk 0:00:03]} 53. Nc4 {[%clk 0:00:14]}  Rxg6+ {[%clk 0:00:02]} 54. Kf5 {[%clk 0:00:14]}  Rc6 {[%clk 0:00:03]} 55. Ne3 {[%clk 0:00:14]}  Kf7 {[%clk 0:00:03]} 56. Nd5 {[%clk 0:00:14]}  Rc5 {[%clk 0:00:04]} 57. Ne3 {[%clk 0:00:14]}  Rc3 {[%clk 0:00:04]} 58. Ke4 {[%clk 0:00:11]}  Rc1 {[%clk 0:00:04]} 59. f5 {[%clk 0:00:11]}  Re1 {[%clk 0:00:04]} 60. Kf4 {[%clk 0:00:10]}  Ra1 {[%clk 0:00:05]} 61. Ke4 {[%clk 0:00:09]}  Ra4+ {[%clk 0:00:05]} 62. Kd5 {[%clk 0:00:09]}  Rf4 {[%clk 0:00:05]} 63. e6+ {[%clk 0:00:08]}  Kf6 {[%clk 0:00:04]} 64. Kd6 {[%clk 0:00:07]}  Rd4+ {[%clk 0:00:04]} 65. Nd5+ {[%clk 0:00:08]}  Kxf5 {[%clk 0:00:03]} 66. e7 {[%clk 0:00:07]}  Re4 {[%clk 0:00:04]} 67. Nc7 {[%clk 0:00:04]}  g5 {[%clk 0:00:03]} 68. e8=Q {[%clk 0:00:03]}  Rxe8 {[%clk 0:00:04]} 69. Nxe8 {[%clk 0:00:04]}  g4 {[%clk 0:00:04]} 70. Ng7+ {[%clk 0:00:01]}  Kg6 {[%clk 0:00:02]} 0-1


[Site "https://www.chess.com"]

[Event "Titled Tuesday Blitz April 25 Early 2023"]
[White "Omranalhosani21"]
[Black "Shaik Sumer Arsh"]
[BlackFideId "45020000"]
[WhiteElo "2750"]
[BlackElo "2350"]
[Result "1-0"]
[Round "05"]
[TimeControl "180+2"]
[Date "2023.04.25"]
[WhiteClock "0:00:07"]
[BlackClock "0:00:15"]

1. d4 {[%clk 0:03:00]}  Nf6 {[%clk 0:02:58]} 2. c4 {[%clk 0:03:00]}  e6 {[%clk 0:02:58]} 3. Nc3 {[%clk 0:03:01]}  Bb4 {[%clk 0:02:58]} 4. a3 {[%clk 0:03:01]}  Bxc3+ {[%clk 0:02:55]} 5. bxc3 {[%clk 0:03:02]}  c5 {[%clk 0:02:51]} 6. f3 {[%clk 0:03:02]}  O-O {[%clk 0:02:47]} 7. e4 {[%clk 0:03:02]}  Nc6 {[%clk 0:02:39]} 8. e5 {[%clk 0:02:58]}  Ne8 {[%clk 0:02:36]} 9. f4 {[%clk 0:02:59]}  d6 {[%clk 0:02:23]} 10. dxc5 {[%clk 0:02:58]}  dxe5 {[%clk 0:02:21]} 11. Qxd8 {[%clk 0:02:58]}  Nxd8 {[%clk 0:02:22]} 12. fxe5 {[%clk 0:02:55]}  Nc6 {[%clk 0:02:18]} 13. Nf3 {[%clk 0:02:55]}  Bd7 {[%clk 0:02:14]} 14. Be3 {[%clk 0:02:55]}  Nc7 {[%clk 0:02:11]} 15. Be2 {[%clk 0:02:50]}  Ne7 {[%clk 0:02:05]} 16. O-O {[%clk 0:02:48]}  Ng6 {[%clk 0:02:03]} 17. Rfd1 {[%clk 0:02:45]}  Bc6 {[%clk 0:02:03]} 18. Bd4 {[%clk 0:02:35]}  Nf4 {[%clk 0:01:43]} 19. Kf2 {[%clk 0:02:31]}  Na6 {[%clk 0:01:25]} 20. Bf1 {[%clk 0:02:27]}  Rac8 {[%clk 0:01:24]} 21. g3 {[%clk 0:02:23]}  Bxf3 {[%clk 0:01:21]} 22. Kxf3 {[%clk 0:02:22]}  Ng6 {[%clk 0:01:21]} 23. Rab1 {[%clk 0:01:51]}  Nxc5 {[%clk 0:01:10]} 24. Bxc5 {[%clk 0:01:50]}  Rxc5 {[%clk 0:01:09]} 25. Rxb7 {[%clk 0:01:51]}  Nxe5+ {[%clk 0:01:10]} 26. Ke3 {[%clk 0:01:34]}  Nxc4+ {[%clk 0:01:07]} 27. Bxc4 {[%clk 0:01:33]}  Rxc4 {[%clk 0:01:07]} 28. Rxa7 {[%clk 0:01:33]}  Rxc3+ {[%clk 0:01:07]} 29. Rd3 {[%clk 0:01:33]}  Rc2 {[%clk 0:01:04]} 30. h4 {[%clk 0:01:32]}  h5 {[%clk 0:00:51]} 31. a4 {[%clk 0:01:31]}  Ra2 {[%clk 0:00:50]} 32. Rdd7 {[%clk 0:01:21]}  g6 {[%clk 0:00:45]} 33. a5 {[%clk 0:01:19]}  Kg7 {[%clk 0:00:45]} 34. a6 {[%clk 0:01:07]}  Ra3+ {[%clk 0:00:45]} 35. Kf4 {[%clk 0:01:06]}  Kf6 {[%clk 0:00:45]} 36. Rdb7 {[%clk 0:00:53]}  e5+ {[%clk 0:00:29]} 37. Ke4 {[%clk 0:00:53]}  Rxg3 {[%clk 0:00:30]} 38. Rb6+ {[%clk 0:00:52]}  Kg7 {[%clk 0:00:31]} 39. Kxe5 {[%clk 0:00:51]}  Re8+ {[%clk 0:00:30]} 40. Kf4 {[%clk 0:00:47]}  Rg4+ {[%clk 0:00:30]} 41. Kf3 {[%clk 0:00:47]}  Ree4 {[%clk 0:00:26]} 42. Rd7 {[%clk 0:00:42]}  Rgf4+ {[%clk 0:00:25]} 43. Kg3 {[%clk 0:00:42]}  Rg4+ {[%clk 0:00:24]} 44. Kf3 {[%clk 0:00:43]}  Ra4 {[%clk 0:00:19]} 45. a7 {[%clk 0:00:42]}  Rxh4 {[%clk 0:00:19]} 46. Rbb7 {[%clk 0:00:34]}  Rhc4 {[%clk 0:00:19]} 47. Rxf7+ {[%clk 0:00:33]}  Kh6 {[%clk 0:00:20]} 48. Ke3 {[%clk 0:00:31]}  Rc3+ {[%clk 0:00:20]} 49. Kd2 {[%clk 0:00:31]}  Rca3 {[%clk 0:00:21]} 50. Kc2 {[%clk 0:00:26]}  h4 {[%clk 0:00:19]} 51. Rh7+ {[%clk 0:00:20]}  Kg5 {[%clk 0:00:19]} 52. Rb5+ {[%clk 0:00:18]}  Kg4 {[%clk 0:00:18]} 53. a8=Q {[%clk 0:00:16]}  Rxa8 {[%clk 0:00:18]} 54. Rb4+ {[%clk 0:00:16]}  Kg5 {[%clk 0:00:18]} 55. Rhxh4 {[%clk 0:00:17]}  Rc8+ {[%clk 0:00:17]} 56. Kb2 {[%clk 0:00:16]}  Rg3 {[%clk 0:00:18]} 57. Rh7 {[%clk 0:00:14]}  Rf8 {[%clk 0:00:19]} 58. Rb5+ {[%clk 0:00:07]}  Rf5 {[%clk 0:00:19]} 59. Rb3 {[%clk 0:00:05]}  Rf2+ {[%clk 0:00:16]} 60. Ka3 {[%clk 0:00:05]}  Rxb3+ {[%clk 0:00:13]} 61. Kxb3 {[%clk 0:00:06]}  Kg4 {[%clk 0:00:14]} 62. Kc3 {[%clk 0:00:06]}  Re2 {[%clk 0:00:14]} 63. Kd3 {[%clk 0:00:06]}  Re8 {[%clk 0:00:15]} 64. Rh1 {[%clk 0:00:06]}  g5 {[%clk 0:00:15]} 65. Rg1+ {[%clk 0:00:06]}  Kf4 {[%clk 0:00:15]} 66. Rf1+ {[%clk 0:00:06]}  Kg3 {[%clk 0:00:16]} 67. Rg1+ {[%clk 0:00:07]}  Kh4 {[%clk 0:00:16]} 68. Rh1+ {[%clk 0:00:07]}  Kg4 {[%clk 0:00:17]} 69. Rg1+ {[%clk 0:00:08]}  Kh5 {[%clk 0:00:18]} 70. Rh1+ {[%clk 0:00:08]}  Kg6 {[%clk 0:00:19]} 71. Rg1 {[%clk 0:00:09]}  Re5 {[%clk 0:00:18]} 72. Kd2 {[%clk 0:00:09]}  Re4 {[%clk 0:00:18]} 73. Re1 {[%clk 0:00:08]}  Rf4 {[%clk 0:00:14]} 74. Ke3 {[%clk 0:00:07]}  g4 {[%clk 0:00:15]} 75. Kxf4 {[%clk 0:00:07]}  Kf6 {[%clk 0:00:14]} 76. Kxg4 {[%clk 0:00:07]}  Kg6 {[%clk 0:00:15]} 77. Re6+ {[%clk 0:00:07]} 1-0


[Site "https://www.chess.com"]

[Event "Titled Tuesday Blitz April 25 Early 2023"]
[White "Liu, Xiangyi"]
[Black "Arat, Ufuk Sezen"]
[WhiteFideId "8605718"]
[BlackFideId "6309089"]
[WhiteElo "2323"]
[BlackElo "2289"]
[Result "1-0"]
[Round "05"]
[TimeControl "180+2"]
[Date "2023.04.25"]
[WhiteClock "0:00:44"]
[BlackClock "0:00:08"]

1. Nf3 {[%clk 0:03:00]}  d5 {[%clk 0:02:59]} 2. g3 {[%clk 0:03:00]}  Nf6 {[%clk 0:03:00]} 3. Bg2 {[%clk 0:03:00]}  c6 {[%clk 0:03:00]} 4. O-O {[%clk 0:03:00]}  Bg4 {[%clk 0:03:01]} 5. h3 {[%clk 0:03:00]}  Bf5 {[%clk 0:03:00]} 6. d3 {[%clk 0:02:58]}  e6 {[%clk 0:03:00]} 7. Nbd2 {[%clk 0:02:58]}  Nbd7 {[%clk 0:03:00]} 8. Nh4 {[%clk 0:02:52]}  Bd6 {[%clk 0:02:50]} 9. e4 {[%clk 0:02:50]}  Bg6 {[%clk 0:02:45]} 10. f4 {[%clk 0:02:49]}  Bc5+ {[%clk 0:02:18]} 11. Kh2 {[%clk 0:02:45]}  Bh5 {[%clk 0:01:42]} 12. Qe1 {[%clk 0:02:37]}  dxe4 {[%clk 0:01:37]} 13. dxe4 {[%clk 0:02:36]}  e5 {[%clk 0:01:24]} 14. Nb3 {[%clk 0:02:15]}  Be7 {[%clk 0:01:13]} 15. Nf5 {[%clk 0:02:01]}  O-O {[%clk 0:01:08]} 16. g4 {[%clk 0:01:38]}  Bxg4 {[%clk 0:00:59]} 17. hxg4 {[%clk 0:01:31]}  Nxg4+ {[%clk 0:00:59]} 18. Kh3 {[%clk 0:01:31]}  h5 {[%clk 0:00:51]} 19. Nxe7+ {[%clk 0:01:12]}  Qxe7 {[%clk 0:00:51]} 20. Qh4 {[%clk 0:01:13]}  Ndf6 {[%clk 0:00:46]} 21. f5 {[%clk 0:01:09]}  Rad8 {[%clk 0:00:39]} 22. Bg5 {[%clk 0:01:08]}  Qb4 {[%clk 0:00:38]} 23. Bxf6 {[%clk 0:00:54]}  Nxf6 {[%clk 0:00:38]} 24. Bf3 {[%clk 0:00:52]}  Qc4 {[%clk 0:00:33]} 25. Rg1 {[%clk 0:00:48]}  Ne8 {[%clk 0:00:11]} 26. Qxd8 {[%clk 0:00:44]}  Nf6 {[%clk 0:00:08]} 1-0


[Site "https://www.chess.com"]